[Event "SVK Extraliga 2019-20"]
[Site "Slovakia"]
[Date "2019.10.19"]
[Round "1.4"]
[White "Szustakowski, Antoni"]
[Black "Petrik, Tomas"]
[Result "0-1"]
[ECO "E20"]
[WhiteElo "2300"]
[BlackElo "2462"]
[Annotator "ChessBase"]
[PlyCount "72"]
[EventDate "2019.10.19"]
[EventType "team-tourn"]
[EventCountry "SVK"]
[SourceTitle "playchess.com"]
[Source "ChessBase"]
[SourceQuality "1"]
[WhiteTeam "Prakovce"]
[BlackTeam "Zilina"]
[TimeControl "40/5400+30:1800+30"]

1. d4 {[%emt 0:00:00]} e6 {[%emt 0:02:56]} 2. c4 {[%emt 0:00:00]} Nf6 {[%emt 0:00:10]} 3. Nc3 {[%emt 0:00:14]} Bb4 {[%emt 0:00:24]} 4. f3 {[%emt 0:00:06]} d5 {[%emt 0:02:23]} 5. a3 {[%emt 0:00:09]} Be7 {[%emt 0:00:54]} 6. e4 {[%emt 0:00:35]} dxe4 {[%emt 0:00:31]} 7. fxe4 {[%emt 0:00:07]} e5 {[%emt 0:00:06]} 8. d5 {[%emt 0:00:19]} Bc5 {[%emt 0:00:18]} 9. Nf3 {[%emt 0:04:53]} Bg4 {[%emt 0:07:55]} 10. h3 {[%emt 0:08:47]} Bxf3 {[%emt 0:04:49]} 11. Qxf3 {[%emt 0:00:12]} Nbd7 {[%emt 0:00:34]} 12. Bd3 {[%emt 0:07:37]} O-O {[%emt 0:29:57]} 13. Bg5 {[%emt 0:08:18]} Bd4 {[%emt 0:07:44]} 14. Bc2 {[%emt 0:11:50]} c6 {[%emt 0:07:26]} 15. Rf1 {[%emt 0:21:56]} Rc8 {[%emt 0:07:21]} 16. d6 {[%emt 0:05:53]} Qb6 {[%emt 0:09:59]} 17. O-O-O {[%emt 0:01:39]} Qc5 {[%emt 0:07:59]} 18. Ne2 {[%emt 0:05:29]} Qxd6 {[%emt 0:00:22]} 19. Ng3 {[%emt 0:06:15]} c5 {[%emt 0:01:35]} 20. Nf5 {[%emt 0:00:10]} Qb6 {[%emt 0:00:05]} 21. b3 {[%emt 0:00:10]} Kh8 {[%emt 0:00:39]} 22. Bd2 {[%emt 0:05:40]} Qe6 {[%emt 0:02:35]} 23. Bd3 {[%emt 0:01:51]} b5 {[%emt 0:01:28]} 24. Kb1 {[%emt 0:02:39]} Nb6 {[%emt 0:02:13]} 25. Rc1 {[%emt 0:00:46]} Rb8 {[%emt 0:00:12]} 26. Ka2 {[%emt 0:03:14]} bxc4 {[%emt 0:00:39]} 27. Bxc4 {[%emt 0:00:03]} Nxc4 {[%emt 0:00:04]} 28. Rxc4 {[%emt 0:00:03]} Rb6 {[%emt 0:00:59]} 29. Bg5 {[%emt 0:02:56]} Rfb8 {[%emt 0:00:36]} 30. Nxd4 {[%emt 0:01:52]} cxd4 {[%emt 0:00:10]} 31. Bxf6 {[%emt 0:01:03]} gxf6 {[%emt 0:00:54]} 32. Rb1 {[%emt 0:00:34]} Rxb3 {[%emt 0:01:16]} 33. Rxb3 {[%emt 0:00:19]} Qxc4 {[%emt 0:00:02]} 34. Qxf6+ {[%emt 0:00:05]} Kg8 {[%emt 0:00:04]} 35. Qg5+ {[%emt 0:01:07]} Kf8 {[%emt 0:00:03]} 36. Qh6+ {[%emt 0:00:31]} Ke8 {[%emt 0:00:25]} 0-1

[Event "SVK Extraliga 2019-20"]
[Site "Slovakia"]
[Date "2019.10.19"]
[Round "1.4"]
[White "Mosesov, Danylo"]
[Black "Likavsky, Tomas"]
[Result "0-1"]
[ECO "A53"]
[WhiteElo "2290"]
[BlackElo "2423"]
[Annotator "NA"]
[PlyCount "124"]
[EventDate "2019.10.19"]
[EventType "team-tourn"]
[EventCountry "SVK"]
[SourceTitle "playchess.com"]
[Source "ChessBase"]
[SourceQuality "1"]
[WhiteTeam "Kosice"]
[BlackTeam "Podhajska"]
[TimeControl "40/5400+30:1800+30"]

1. d4 {[%emt 0:00:00]} Nf6 {[%emt 0:00:00]} 2. c4 {[%emt 0:00:00]} d6 {[%emt 0:00:38]} 3. Nc3 {[%emt 0:00:56]} Nbd7 {[%emt 0:01:38]} 4. e4 {[%emt 0:01:48]} e5 {[%emt 0:00:14]} 5. d5 {[%emt 0:01:04]} Nc5 {[%emt 0:03:37]} 6. f3 {[%emt 0:02:02]} a5 {[%emt 0:00:33]} 7. Be3 {[%emt 0:00:50]} h5 {[%emt 0:09:05]} 8. Qd2 {[%emt 0:03:00]} Be7 {[%emt 0:05:00]} 9. O-O-O {[%emt 0:02:18]} h4 {[%emt 0:05:45]} 10. Kb1 {[%emt 0:08:07]} Bd7 {[%emt 0:09:16]} 11. Nge2 {[%emt 0:03:53]} b6 {[%emt 0:04:19]} 12. Nc1 {[%emt 0:04:27]} Nh7 {[%emt 0:05:57]} 13. Be2 {[%emt 0:07:56]} Bg5 {[%emt 0:00:49]} 14. g3 {[%emt 0:01:50]} Bxe3 {[%emt 0:00:54]} 15. Qxe3 {[%emt 0:00:05]} Qg5 {[%emt 0:05:08]} 16. f4 {[%emt 0:04:18]} Qh6 {[%emt 0:00:05]} 17. Bf3 {[%emt 0:16:30]} Nf6 {[%emt 0:08:04]} 18. Qe2 {[%emt 0:06:17]} Kf8 {[%emt 0:07:26]} 19. fxe5 {[%emt 0:02:45]} dxe5 {[%emt 0:00:03]} 20. Nd3 {[%emt 0:06:33]} Nxd3 {[%emt 0:01:59]} 21. Qxd3 {[%emt 0:00:05]} Ne8 {[%emt 0:00:39]} 22. gxh4 {[%emt 0:06:40]} Qxh4 {[%emt 0:01:12]} 23. c5 {[%emt 0:02:35]} bxc5 {[%emt 0:02:39]} 24. Qe3 {[%emt 0:00:22]} Qe7 {[%emt 0:01:00]} 25. h4 {[%emt 0:03:54]} a4 {[%emt 0:05:30]} 26. a3 {[%emt 0:02:14]} Rh6 {[%emt 0:02:04]} 27. h5 {[%emt 0:00:44]} Rb8 {[%emt 0:02:12]} 28. Rd2 {[%emt 0:02:05]} Qd6 {[%emt 0:05:06]} 29. Rc1 {[%emt 0:02:05]} c4 {[%emt 0:03:07]} 30. Ka2 {[%emt 0:05:10]} Qb6 {[%emt 0:01:06]} 31. Re1 {[%emt 0:01:00]} Nd6 {[%emt 0:01:42]} 32. Bd1 {[%emt 0:00:49]} Qxe3 {[%emt 0:03:35]} 33. Rxe3 {[%emt 0:00:02]} Ra8 {[%emt 0:00:29]} 34. Rg2 {[%emt 0:02:00]} f6 {[%emt 0:02:16]} 35. Reg3 {[%emt 0:00:46]} Rh7 {[%emt 0:00:26]} 36. Rf2 {[%emt 0:01:54]} Be8 {[%emt 0:00:46]} 37. Rfg2 {[%emt 0:00:28]} c6 {[%emt 0:01:50]} 38. Bc2 {[%emt 0:00:50]} cxd5 {[%emt 0:00:50]} 39. exd5 {[%emt 0:00:22]} f5 {[%emt 0:00:08]} 40. Rg5 {[%emt 0:00:35]} e4 {[%emt 0:00:43]} 41. Rf2 {[%emt 0:30:30]} Rxh5 {[%emt 0:08:50]} 42. Rxh5 {[%emt 0:00:00]} Bxh5 {[%emt 0:00:03]} 43. Nxe4 {[%emt 0:00:00]} Nxe4 {[%emt 0:00:13]} 44. Bxe4 {[%emt 0:00:00]} g6 {[%emt 0:00:05]} 45. Bg2 {[%emt 0:00:00]} Bd1 {[%emt 0:04:29]} 46. Kb1 {[%emt 0:00:00]} Bb3 {[%emt 0:00:37]} 47. Kc1 {[%emt 0:00:00]} Rd8 {[%emt 0:02:18]} 48. Rf4 {[%emt 0:00:00]} Ke7 {[%emt 0:01:09]} 49. Kd2 {[%emt 0:00:00]} Rh8 {[%emt 0:01:57]} 50. Kc3 {[%emt 0:00:47]} Rh2 {[%emt 0:00:54]} 51. Rf2 {[%emt 0:00:23]} Kd6 {[%emt 0:01:06]} 52. Re2 {[%emt 0:01:22]} Kc5 {[%emt 0:00:11]} 53. Rd2 {[%emt 0:00:41]} Kd6 54. Re2 g5 {[%emt 0:01:02]} 55. Kd4 {[%emt 0:01:36]} c3 {[%emt 0:00:57]} 56. bxc3 {[%emt 0:01:38]} Bxd5 {[%emt 0:00:07]} 57. Bf1 {[%emt 0:00:04]} Rh4+ {[%emt 0:01:12]} 58. Ke3 {[%emt 0:00:04]} f4+ {[%emt 0:01:10]} 59. Kd2 {[%emt 0:00:21]} Bc4 {[%emt 0:03:19]} 60. Rf2 {[%emt 0:00:03]} Kc5 {[%emt 0:00:20]} 61. Bd3 {[%emt 0:02:17]} Bxd3 {[%emt 0:03:38]} 62. Kxd3 {[%emt 0:00:03]} Rh3+ {[%emt 0:00:08] Kd4+} 0-1

[Event "SVK Extraliga 2019-20"]
[Site "Slovakia"]
[Date "2019.10.20"]
[Round "1.4"]
[White "Lintner, Igor"]
[Black "Maslik, Miroslav"]
[Result "1/2-1/2"]
[ECO "B07"]
[WhiteElo "2187"]
[BlackElo "2363"]
[Annotator "ChessBase"]
[PlyCount "85"]
[EventDate "2019.10.19"]
[EventType "team-tourn"]
[EventCountry "SVK"]
[SourceTitle "playchess.com"]
[Source "ChessBase"]
[SourceQuality "1"]
[WhiteTeam "Bratislava"]
[BlackTeam "Modra"]
[WhiteTeamCountry "SVK"]
[BlackTeamCountry "SVK"]
[TimeControl "40/5400+30:1800+30"]

1. d4 {[%emt 0:00:05]} Nf6 {[%emt 0:14:41]} 2. Bf4 {[%emt 0:00:12]} d6 {[%emt 0:00:19]} 3. Nc3 {[%emt 0:00:26]} c6 {[%emt 0:02:58]} 4. e4 {[%emt 0:00:27]} Qa5 {[%emt 0:01:51]} 5. f3 {[%emt 0:06:34]} e5 {[%emt 0:01:31]} 6. Be3 {[%emt 0:01:16]} Nbd7 {[%emt 0:01:15]} 7. Qd2 {[%emt 0:01:30]} Be7 {[%emt 0:09:53]} 8. g4 {[%emt 0:11:37]} O-O {[%emt 0:03:37]} 9. Nge2 {[%emt 0:01:05]} d5 {[%emt 0:11:16]} 10. g5 {[%emt 0:03:03]} Nh5 {[%emt 0:00:10]} 11. Ng3 {[%emt 0:04:42]} Nxg3 {[%emt 0:01:01]} 12. hxg3 {[%emt 0:00:30]} exd4 {[%emt 0:04:35]} 13. Qh2 {[%emt 0:03:23]} h6 {[%emt 0:00:41]} 14. gxh6 {[%emt 0:01:41]} g6 {[%emt 0:03:40]} 15. h7+ {[%emt 0:05:24]} Kh8 {[%emt 0:00:02]} 16. Bxd4+ {[%emt 0:00:14]} Bf6 {[%emt 0:00:52]} 17. Bxf6+ {[%emt 0:12:39]} Nxf6 {[%emt 0:00:02]} 18. Qh6 {[%emt 0:00:30]} Be6 {[%emt 0:07:56]} 19. Qf4 {[%emt 0:04:16]} Kg7 {[%emt 0:07:20]} 20. O-O-O {[%emt 0:14:40]} dxe4 {[%emt 0:01:25]} 21. fxe4 {[%emt 0:02:35]} g5 {[%emt 0:03:47]} 22. Qe3 {[%emt 0:02:08]} Qe5 {[%emt 0:02:21]} 23. Bh3 {[%emt 0:03:17]} Bxh3 {[%emt 0:01:44]} 24. Rxh3 {[%emt 0:00:15]} Nxh7 {[%emt 0:14:06]} 25. Rf1 {[%emt 0:04:20]} Rfe8 {[%emt 0:02:55]} 26. g4 {[%emt 0:04:35]} Rad8 {[%emt 0:00:00]} 27. Rhf3 {[%emt 0:09:03]} f6 {[%emt 0:00:00]} 28. Qxa7 {[%emt 0:01:08]} Rd7 {[%emt 0:00:07]} 29. Qf2 {[%emt 0:01:24]} Re6 {[%emt 0:00:14]} 30. Rd3 {[%emt 0:00:25]} Red6 {[%emt 0:00:36]} 31. Rxd6 {[%emt 0:01:03]} Rxd6 {[%emt 0:00:14]} 32. Qb6 {[%emt 0:00:55]} Rd7 {[%emt 0:00:13]} 33. Qe3 {[%emt 0:00:21]} Nf8 {[%emt 0:00:44]} 34. Rf5 {[%emt 0:00:40]} Qh2 {[%emt 0:00:32]} 35. b3 {[%emt 0:00:09]} Ng6 {[%emt 0:00:14]} 36. e5 {[%emt 0:00:57]} Nxe5 {[%emt 0:00:30]} 37. Ne4 {[%emt 0:00:27]} Nxg4 {[%emt 0:01:46]} 38. Qf3 {[%emt 0:00:31]} Qg1+ {[%emt 0:00:51]} 39. Kb2 {[%emt 0:00:06]} Rd1 {[%emt 0:02:09]} 40. Nxg5 {[%emt 0:00:51]} Qd4+ {[%emt 0:01:14]} 41. Ka3 {[%emt 0:00:18]} Qa7+ {[%emt 0:13:38]} 42. Kb2 {[%emt 0:01:23]} Qd4+ {[%emt 0:00:00]} 43. Ka3 {[%emt 0:00:22]} 1/2-1/2

[Event "SVK Extraliga 2019-20"]
[Site "Slovakia"]
[Date "2019.10.19"]
[Round "1.5"]
[White "Druska, Juraj"]
[Black "Mikrut, Dariusz"]
[Result "1/2-1/2"]
[ECO "B72"]
[WhiteElo "2472"]
[BlackElo "2384"]
[Annotator "ChessBase"]
[PlyCount "23"]
[EventDate "2019.10.19"]
[EventType "team-tourn"]
[EventCountry "SVK"]
[SourceTitle "playchess.com"]
[Source "ChessBase"]
[SourceQuality "1"]
[WhiteTeam "Zilina"]
[BlackTeam "Prakovce"]
[TimeControl "40/5400+30:1800+30"]

1. e4 {[%emt 0:01:53]} c5 {[%emt 0:00:00]} 2. Nf3 {[%emt 0:00:17]} d6 {[%emt 0:00:00]} 3. d4 {[%emt 0:00:41]} cxd4 {[%emt 0:00:06]} 4. Nxd4 {[%emt 0:00:08]} Nf6 {[%emt 0:00:37]} 5. Nc3 {[%emt 0:00:07]} a6 {[%emt 0:00:40]} 6. Bd3 {[%emt 0:00:06]} g6 {[%emt 0:00:37]} 7. f3 {[%emt 0:07:49]} Bg7 {[%emt 0:00:25]} 8. Be3 {[%emt 0:00:07]} Nc6 {[%emt 0:00:38]} 9. Qd2 {[%emt 0:01:59]} Ne5 {[%emt 0:20:26]} 10. O-O-O {[%emt 0:05:23]} O-O {[%emt 0:00:11]} 11. Kb1 {[%emt 0:07:31]} Bd7 {[%emt 0:04:56]} 12. h4 {[%emt 0:35:30]} 1/2-1/2

[Event "SVK Extraliga 2019-20"]
[Site "Slovakia"]
[Date "2019.10.19"]
[Round "1.5"]
[White "Piesik, Piotr"]
[Black "Pacher, Milan"]
[Result "1/2-1/2"]
[ECO "E46"]
[WhiteElo "2407"]
[BlackElo "2437"]
[Annotator "NA"]
[PlyCount "29"]
[EventDate "2019.10.19"]
[EventType "team-tourn"]
[EventCountry "SVK"]
[SourceTitle "playchess.com"]
[Source "ChessBase"]
[SourceQuality "1"]
[WhiteTeam "Dubnica"]
[BlackTeam "Slovan"]
[TimeControl "40/5400+30:1800+30"]

1. d4 {[%emt 0:00:00]} Nf6 {[%emt 0:00:00]} 2. c4 {[%emt 0:00:00]} e6 {[%emt 0:00:00]} 3. Nc3 {[%emt 0:00:00]} Bb4 {[%emt 0:00:00]} 4. e3 {[%emt 0:00:44]} O-O {[%emt 0:00:00]} 5. Bd2 {[%emt 0:02:46]} d5 {[%emt 0:00:32]} 6. Nf3 {[%emt 0:00:50]} b6 {[%emt 0:00:10]} 7. a3 {[%emt 0:06:42]} Bd6 {[%emt 0:03:55]} 8. Rc1 {[%emt 0:11:25]} a6 {[%emt 0:04:52]} 9. Bd3 {[%emt 0:02:23]} Bb7 {[%emt 0:00:46]} 10. O-O {[%emt 0:06:46]} Nbd7 {[%emt 0:00:06]} 11. b4 {[%emt 0:10:46]} dxc4 {[%emt 0:07:52]} 12. Bxc4 {[%emt 0:00:14]} e5 {[%emt 0:00:11]} 13. dxe5 {[%emt 0:07:47]} Nxe5 {[%emt 0:00:04]} 14. Nxe5 {[%emt 0:00:41]} Bxe5 {[%emt 0:00:03]} 15. Qe2 {[%emt 0:01:14]} 1/2-1/2

[Event "SVK Extraliga 2019-20"]
[Site "Slovakia"]
[Date "2019.10.19"]
[Round "1.5"]
[White "Vymazal, Bronislav"]
[Black "Dovzik, Juri"]
[Result "1/2-1/2"]
[ECO "B48"]
[WhiteElo "2347"]
[BlackElo "2276"]
[Annotator "NA"]
[PlyCount "82"]
[EventDate "2019.10.19"]
[EventType "team-tourn"]
[EventCountry "SVK"]
[SourceTitle "playchess.com"]
[Source "ChessBase"]
[SourceQuality "1"]
[WhiteTeam "Podhajska"]
[BlackTeam "Kosice"]
[TimeControl "40/5400+30:1800+30"]

1. e4 {[%emt 0:00:00]} c5 {[%emt 0:00:38]} 2. Nf3 {[%emt 0:00:00]} e6 {[%emt 0:00:23]} 3. d4 {[%emt 0:00:00]} cxd4 {[%emt 0:00:10]} 4. Nxd4 {[%emt 0:00:01]} Nc6 {[%emt 0:00:30]} 5. Nc3 {[%emt 0:01:14]} Qc7 {[%emt 0:00:38]} 6. Be3 {[%emt 0:05:30]} a6 {[%emt 0:03:38]} 7. Qd2 {[%emt 0:00:13]} Nf6 {[%emt 0:00:45]} 8. O-O-O {[%emt 0:00:38]} Bb4 {[%emt 0:00:47]} 9. f3 {[%emt 0:00:35]} Ne7 {[%emt 0:02:32]} 10. Nb3 {[%emt 0:24:00]} d5 {[%emt 0:18:30]} 11. e5 {[%emt 0:15:47]} Nd7 {[%emt 0:09:57]} 12. f4 {[%emt 0:01:37]} O-O {[%emt 0:16:51]} 13. Bd3 {[%emt 0:07:24]} b6 {[%emt 0:09:48]} 14. Qe1 {[%emt 0:13:06]} Bxc3 {[%emt 0:02:50]} 15. Qxc3 {[%emt 0:00:11]} Qxc3 {[%emt 0:00:10]} 16. bxc3 {[%emt 0:00:05]} Bb7 {[%emt 0:04:23]} 17. Rhf1 {[%emt 0:04:06]} Rfc8 {[%emt 0:04:12]} 18. Bd4 {[%emt 0:01:05]} Nc5 {[%emt 0:06:21]} 19. g4 {[%emt 0:04:37]} a5 {[%emt 0:05:40]} 20. Rf3 {[%emt 0:05:44]} a4 {[%emt 0:01:52]} 21. Nd2 {[%emt 0:00:07]} Nc6 {[%emt 0:02:13]} 22. Re1 {[%emt 0:10:25]} Nxd3+ {[%emt 0:06:03]} 23. Rxd3 {[%emt 0:00:05]} Ba6 {[%emt 0:00:15]} 24. Rf3 {[%emt 0:00:17]} Nxd4 {[%emt 0:00:15]} 25. cxd4 {[%emt 0:00:08]} Rc7 {[%emt 0:00:41]} 26. Kb2 {[%emt 0:01:06]} Rac8 {[%emt 0:00:20]} 27. c3 {[%emt 0:01:03]} a3+ {[%emt 0:01:48]} 28. Kb3 {[%emt 0:02:27]} Bc4+ {[%emt 0:00:19]} 29. Nxc4 {[%emt 0:00:51]} Rxc4 {[%emt 0:00:04]} 30. Rb1 {[%emt 0:01:27]} h6 {[%emt 0:01:02]} 31. Rd3 {[%emt 0:00:43]} b5 {[%emt 0:00:10]} 32. Kc2 {[%emt 0:00:43]} b4 {[%emt 0:00:13]} 33. Rb3 {[%emt 0:00:04]} Kf8 {[%emt 0:00:55]} 34. Kd2 {[%emt 0:00:18]} bxc3+ {[%emt 0:00:55]} 35. Rbxc3 {[%emt 0:00:07]} Ke7 {[%emt 0:01:02]} 36. h4 {[%emt 0:01:27]} g6 {[%emt 0:00:05]} 37. Rxc4 {[%emt 0:00:25]} Rxc4 {[%emt 0:00:08]} 38. Ke3 {[%emt 0:00:04]} Rc1 {[%emt 0:00:36]} 39. Rxa3 {[%emt 0:00:18]} Rh1 {[%emt 0:00:42]} 40. Ra7+ {[%emt 0:00:08]} Kf8 {[%emt 0:00:01]} 41. h5 {[%emt 0:12:25]} Rh3+ {[%emt 0:05:09] Ke4} 1/2-1/2

[Event "SVK Extraliga 2019-20"]
[Site "Slovakia"]
[Date "2019.10.20"]
[Round "1.5"]
[White "Schwarz, Dusan"]
[Black "Bochnicka, Vladimir"]
[Result "1-0"]
[ECO "D27"]
[WhiteElo "2315"]
[BlackElo "2087"]
[Annotator "ChessBase"]
[PlyCount "89"]
[EventDate "2019.10.19"]
[EventType "team-tourn"]
[EventCountry "SVK"]
[SourceTitle "playchess.com"]
[Source "ChessBase"]
[SourceQuality "1"]
[WhiteTeam "Modra"]
[BlackTeam "Bratislava"]
[WhiteTeamCountry "SVK"]
[BlackTeamCountry "SVK"]
[TimeControl "40/5400+30:1800+30"]

1. d4 {[%emt 0:00:00]} d5 {[%emt 0:00:00]} 2. c4 {[%emt 0:00:00]} dxc4 {[%emt 0:00:00]} 3. Nf3 {[%emt 0:00:17]} Nf6 {[%emt 0:00:00]} 4. e3 {[%emt 0:00:20]} e6 {[%emt 0:00:08]} 5. Bxc4 {[%emt 0:00:14]} c5 {[%emt 0:00:10]} 6. O-O {[%emt 0:00:40]} a6 {[%emt 0:00:08]} 7. a4 {[%emt 0:00:25]} Nc6 {[%emt 0:00:11]} 8. Qe2 {[%emt 0:01:46]} cxd4 {[%emt 0:00:35]} 9. Rd1 {[%emt 0:00:37]} Be7 {[%emt 0:00:17]} 10. exd4 {[%emt 0:01:07]} O-O {[%emt 0:00:19]} 11. Nc3 {[%emt 0:01:09]} Nb4 {[%emt 0:00:25]} 12. Bg5 {[%emt 0:00:30]} Nbd5 {[%emt 0:07:21]} 13. Ne5 {[%emt 0:04:27]} h6 {[%emt 0:26:39]} 14. Bh4 {[%emt 0:13:12]} g5 {[%emt 0:15:39]} 15. Bg3 {[%emt 0:00:47]} Bd7 {[%emt 0:00:32]} 16. Bb3 {[%emt 0:17:53]} Rc8 {[%emt 0:05:50]} 17. Rac1 {[%emt 0:02:18]} Bc6 {[%emt 0:00:59]} 18. Nxc6 {[%emt 0:04:16]} Rxc6 {[%emt 0:00:49]} 19. Nxd5 {[%emt 0:00:27]} Nxd5 {[%emt 0:01:23]} 20. Rxc6 {[%emt 0:00:23]} bxc6 {[%emt 0:00:02]} 21. Qxa6 {[%emt 0:01:26]} Qd7 {[%emt 0:02:57]} 22. Qe2 {[%emt 0:04:47]} Bf6 {[%emt 0:04:05]} 23. Bc2 {[%emt 0:03:39]} Bg7 {[%emt 0:02:18]} 24. h4 {[%emt 0:05:58]} f5 {[%emt 0:09:54]} 25. hxg5 {[%emt 0:05:16]} hxg5 {[%emt 0:00:11]} 26. Be5 {[%emt 0:00:51]} Bf6 {[%emt 0:10:05]} 27. a5 {[%emt 0:07:15]} Qh7 {[%emt 0:01:32]} 28. Bd6 {[%emt 0:03:44]} Re8 {[%emt 0:01:08]} 29. a6 {[%emt 0:01:48]} Kf7 {[%emt 0:01:22]} 30. g3 {[%emt 0:07:11]} Rh8 {[%emt 0:07:53]} 31. Qf3 {[%emt 0:00:19]} Qh3 {[%emt 0:01:49]} 32. Bb3 {[%emt 0:05:20]} f4 {[%emt 0:00:42]} 33. Bxd5 {[%emt 0:02:17]} cxd5 {[%emt 0:00:08]} 34. a7 {[%emt 0:00:53]} g4 {[%emt 0:01:22]} 35. Qg2 {[%emt 0:00:11]} Qh7 {[%emt 0:00:00]} 36. Bxf4 {[%emt 0:01:26]} Bxd4 {[%emt 0:00:24]} 37. Bb8 {[%emt 0:00:43]} Qc2 {[%emt 0:00:30]} 38. Ra1 {[%emt 0:01:23]} Bxa7 {[%emt 0:00:40]} 39. Bxa7 {[%emt 0:01:09]} Qxb2 {[%emt 0:00:06]} 40. Qf1 {[%emt 0:00:59]} Qe5 {[%emt 0:00:52]} 41. Ra4 {[%emt 0:03:46]} Qh5 {[%emt 0:05:11]} 42. Rf4+ {[%emt 0:01:36]} Ke8 {[%emt 0:00:14]} 43. Qb5+ {[%emt 0:00:25]} Kd8 {[%emt 0:01:18]} 44. Qb8+ {[%emt 0:02:03]} Kd7 {[%emt 0:01:01]} 45. Qb7+ {[%emt 0:00:15]} 1-0

[Event "SVK Extraliga 2019-20"]
[Site "Slovakia"]
[Date "2019.10.19"]
[Round "1.5"]
[White "Pniaczek, Marek"]
[Black "Haring, Filip"]
[Result "0-1"]
[ECO "B32"]
[WhiteElo "2118"]
[BlackElo "2294"]
[Annotator "NA"]
[PlyCount "66"]
[EventDate "2019.10.19"]
[EventType "team-tourn"]
[EventCountry "SVK"]
[SourceTitle "playchess.com"]
[Source "ChessBase"]
[SourceQuality "1"]
[WhiteTeam "Dunajov"]
[BlackTeam "Liptovska"]
[TimeControl "40/5400+30:1800+30"]

{[%evp 8,47,20,32767,10,32767,32767,32767,32767,32767,32767,32767,32767,47,41,32767,56,1,31,-40,-35,-40,-10,0,-11,-13,-1,-14,0,0,0,-19,0,-83,-87,-74,0,0,32767,-126,-39,-856]} 1. e4 c5 2. Nf3 Nc6 3. d4 cxd4 4. Nxd4 e5 5. Nb5 d6 6. c4 Be7 7. N5c3 {B32: Sicilian: Löwenthal and Kalashnikov Variations} (7. N1c3 a6 8. Na3 Be6 9. Nc2 Rc8 10. Be2 Na5 11. b3 b5 12. Ne3 bxc4 13. Ned5 Nf6 14. Be3 Bxd5 15. Nxd5 Nxd5 16. Qxd5 O-O 17. O-O cxb3 18. Bxa6 {1-0 (57) Nihal,S (2610)-Cori,J (2676) Khanty-Mansiysk 2019}) 7... Nf6 8. Bd3 O-O 9. O-O Bg4 10. f3 Be6 11. Be3 Nh5 12. Ne2 $146 (12. Qd2 $14) ({Predecessor:} 12. Na3 Nf4 13. Rc1 Bg5 14. Qd2 h6 15. Bb1 a6 {½-½ (31) Tesik,C (2165)-Fekete,A (2262) Hungary 2010}) 12... Nf4 13. Nxf4 exf4 14. Bf2 {[%emt 0:41:13]} Ne5 15. Na3 Rc8 16. Rc1 a6 17. Be2 f5 18. exf5 Rxf5 {[%emt 0:45:10]} 19. Qd4 {[%emt 0:10:50]} (19. Nc2 $5 {[%cal Rc2d4]}) 19... Qe8 {[%emt 0:07:04]} 20. Bd3 {[%emt 0:08:37]} (20. Qe4 $11 {remains equal.}) 20... Rg5 {[%emt 0:09:19]} 21. Kh1 {[%emt 0:08:53]} Qh5 {[%emt 0:02:44]} (21... Bf6 $15) 22. Be4 {[%emt 0:01:20]} Kh8 {[%emt 0:08:37]} 23. Be1 $2 {[%emt 0:07:11] [#]} (23. Bxb7 $14 Rb8 24. Qa7 (24. Bxa6 $2 Rxg2 25. Bg1 Rbxb2 $19)) 23... d5 $15 {[%emt 0:07:22]} 24. Bxd5 $2 {[%emt 0:01:59]} (24. cxd5 $15 Rxc1 25. dxe6) 24... Bc5 {[%emt 0:09:44]} 25. Qxc5 {[%emt 0:06:21]} Rxc5 26. Bxe6 Rc6 {[%emt 0:08:19]} 27. Bh3 {[%emt 0:00:51]} Rd6 {[%emt 0:01:58]} 28. Bb4 {[%emt 0:06:43]} Rd3 {[%emt 0:00:45]} 29. Rcd1 {[%emt 0:04:56]} h6 {[%emt 0:00:56]} 30. Bc3 {[%emt 0:03:05]} Rxd1 {[%emt 0:01:00]} 31. Rxd1 {[%emt 0:00:05]} Nxf3 {[%emt 0:00:14]} 32. Rf1 Nh4 33. Re1 {[%emt 0:03:55]} f3 {[%emt 0:01:29]} 0-1

[Event "SVK Extraliga 2019-20"]
[Site "Slovakia"]
[Date "2019.10.19"]
[Round "1.6"]
[White "Kostolansky, Sebastian Lukas"]
[Black "Vojtek, Vladimir"]
[Result "1-0"]
[ECO "B50"]
[WhiteElo "2418"]
[BlackElo "2312"]
[Annotator "NA RC"]
[PlyCount "71"]
[EventDate "2019.10.19"]
[EventType "team-tourn"]
[EventCountry "SVK"]
[SourceTitle "playchess.com"]
[Source "ChessBase"]
[SourceQuality "1"]
[WhiteTeam "Slovan"]
[BlackTeam "Dubnica"]
[TimeControl "40/5400+30:1800+30"]

1. e4 {[%emt 0:00:00]} c5 {[%emt 0:00:00]} 2. Nf3 {[%emt 0:00:00]} d6 {[%emt 0:00:00]} 3. c3 {[%emt 0:00:36]} Nf6 {[%emt 0:00:00]} 4. Bd3 {[%emt 0:04:10]} Nc6 {[%emt 0:01:33]} 5. O-O {[%emt 0:01:37]} g6 {[%emt 0:06:34]} 6. h3 {[%emt 0:02:51]} Ne5 {[%emt 0:06:21]} 7. Bc2 {[%emt 0:07:42]} Nxf3+ {[%emt 0:00:23]} 8. Qxf3 {[%emt 0:00:07]} Bg7 {[%emt 0:01:41]} 9. d4 {[%emt 0:05:24]} O-O {[%emt 0:02:48]} 10. dxc5 {[%emt 0:06:04]} dxc5 {[%emt 0:00:50]} 11. Nd2 {[%emt 0:03:43]} Be6 {[%emt 0:05:48]} 12. Qe2 {[%emt 0:03:30]} Nh5 {[%emt 0:13:25]} 13. Nf3 {[%emt 0:03:38]} Qc7 {[%emt 0:05:33]} 14. e5 {[%emt 0:03:12]} Bh8 {[%emt 0:06:01]} 15. Bh6 {[%emt 0:06:38]} Bg7 {[%emt 0:07:40]} 16. Bc1 {[%emt 0:12:00]} Bh8 {[%emt 0:00:21]} 17. g4 {[%emt 0:09:26]} Ng7 {[%emt 0:00:25]} 18. Bh6 {[%emt 0:02:32]} b5 {[%emt 0:09:44]} 19. Rfe1 {[%emt 0:05:12]} Rfe8 {[%emt 0:06:06]} 20. Ng5 {[%emt 0:01:48]} Bc4 {[%emt 0:05:37]} 21. Qf3 {[%emt 0:01:08]} Rad8 {[%emt 0:13:04]} 22. Bb3 {[%emt 0:03:27]} Bxb3 {[%emt 0:02:55]} 23. axb3 {[%emt 0:00:10]} Rf8 {[%emt 0:01:05]} 24. e6 {[%emt 0:06:45]} fxe6 {[%emt 0:00:47]} 25. Qe2 {[%emt 0:00:05]} Qf4 {[%emt 0:03:03]} 26. Bxg7 {[%emt 0:00:45]} Qxg5 {[%emt 0:00:08]} 27. Bxf8 {[%emt 0:00:15]} Kxf8 {[%emt 0:00:47]} 28. Qxe6 {[%emt 0:00:34]} Bf6 {[%emt 0:00:20]} 29. Rxa7 {[%emt 0:00:44]} h5 {[%emt 0:00:16]} 30. Rd7 {[%emt 0:03:17]} Ra8 {[%emt 0:00:44]} 31. Rd5 {[%emt 0:03:33]} Qh4 {[%emt 0:00:36]} 32. g5 {[%emt 0:00:45]} Bxg5 {[%emt 0:00:33]} 33. Re4 {[%emt 0:01:57]} Bf4 {[%emt 0:00:28]} 34. Qxg6 {[%emt 0:00:10]} e5 {[%emt 0:00:44]} 35. Rdxe5 {[%emt 0:00:21]} Bh2+ {[%emt 0:00:38]} 36. Kg2 {[%emt 0:00:10]} 1-0